Cogmind - Beta 10.1 @@@ ROGUE MODE // 2020.10.08 @ 22:17:00 Player: albenzo Result: Destroyed by C-40 Crusher with Compactor Performance ------------- Evolutions (6) 3000 Regions Visited (10) 2000 Robots Destroyed (69) 345 Value Destroyed (2437) 2437 Prototype IDs (4) 80 Alien Tech Used (0) 0 Bonus (465) 465 TOTAL SCORE: 8327 Bonus ------- Follower Combat Kills 165 Aligned with FarCom 300 Cogmind --------- Core Integrity 0/1150 Matter 175/300 Energy 100/100 System Corruption 5% Temperature Cool (0) Movement Core (50) Location -4/Waste Parts ------- > --- POWER (1) -------- (None) > --- PROPULSION (5) --- (None) > --- UTILITY (11) ----- (None) > --- WEAPON (2) ------- (None) > --- INVENTORY (4) ---- Improved Stasis Canceller PSU Rigger Peak State ------------ > --- POWER ------------ Light Antimatter Reactor > --- PROPULSION ------- Combat Airjet Combat Airjet Combat Airjet Antigrav System Antigrav System > --- UTILITY ---------- Large Storage Unit Large Storage Unit Large Storage Unit Improved Signal Interpreter Experimental Signal Interpreter Improved Melee Analysis Suite Advanced Melee Analysis Suite Transmission Jammer Hacking Suite Hacking Suite > --- WEAPON ----------- Scythe Axe > --- INVENTORY -------- Fission Core Fission Core Micro Fission Core Carbon-fiber Leg Carbon-fiber Leg Titanium Leg Flexi-carbon Leg Flexi-carbon Leg Flexi-carbon Leg Flexi-carbon Leg Flexi-carbon Leg Advanced Coolant Injector Humpback Compact Battery Improved Medium Armor Plating PSU Rigger Enhanced Gauss Cannon Enhanced Gauss Cannon Improved Grenade Launcher Advanced Datajack Power Maul [Rating: 79] Favorites ----------- Power Light Nuclear Core Engine Ion Engine Power Core Light Nuclear Core Reactor Light Antimatter Reactor Propulsion Aluminum Leg Leg Aluminum Leg Hover Unit Combat Airjet Utility Large Storage Unit Device Transmission Jammer Storage Large Storage Unit Processor Improved Signal Interpreter Hackware Hacking Suite Protection Improved Medium Armor Plating Weapon Assault Rifle Energy Gun Medium Laser Ballistic Gun Assault Rifle Ballistic Cannon Enhanced Gauss Cannon Launcher Improved Grenade Launcher Impact Weapon Power Maul Slashing Weapon Axe Build | -11 -10 -10 -10 -9 -8 -7 -6 -5 -4 -4 ------- Run | Scr Mat Min Exi Min Mat Fac Fac Fac Fac Was Slots Evolved 12 | . . . . . 4 2 2 2 2 . Power . | . . . . . . . . . . . Propulsion 3 | . . . . . 3 . . . . . Utility 9 | . . . . . 1 2 2 2 2 . Weapon . | . . . . . . . . . . . Parts Attached 111 | 6 10 . 6 3 25 15 7 4 28 7 Power 17 | 1 . . . 2 3 2 2 . 5 2 Engine 3 | 1 . . . 1 1 . . . . . Core 10 | . . . . 1 2 2 2 . 2 1 Reactor 4 | . . . . . . . . . 3 1 Propulsion 51 | 2 2 . . . 15 9 2 2 14 5 Treads . | . . . . . . . . . . . Leg 46 | 2 2 . . . 15 9 2 2 9 5 Wheel . | . . . . . . . . . . . Hover 5 | . . . . . . . . . 5 . Flight . | . . . . . . . . . . . Utility 25 | 1 5 . 6 . 3 2 3 2 3 . Device 9 | . 4 . 3 . 1 . . 1 . . Storage 7 | 1 1 . 3 . . . 1 . 1 . Processor 6 | . . . . . 2 . 2 1 1 . Hackware 2 | . . . . . . 2 . . . . Protection 1 | . . . . . . . . . 1 . Artifact . | . . . . . . . . . . . Weapon 18 | 2 3 . . 1 4 2 . . 6 . Energy Gun 2 | 2 . . . . . . . . . . Energy Cannon . | . . . . . . . . . . . Ballistic Gun 4 | . 3 . . . 1 . . . . . Ballistic Cannon 2 | . . . . . . . . . 2 . Launcher 1 | . . . . . . . . . 1 . Special Weapon . | . . . . . . . . . . . Impact Weapon 5 | . . . . . 3 . . . 2 . Slashing Weapon 4 | . . . . 1 . 2 . . 1 . Piercing Weapon . | . . . . . . . . . . . Special Melee Weapon . | . . . . . . . . . . . Unidentified Prototypes 4 | . . . 2 . 1 . . . 1 . Parts Lost 26 | . 2 . . . 3 1 1 . 8 11 Power 3 | . . . . . 1 1 . . 1 . Propulsion 11 | . . . . . 1 . 1 . 4 5 Utility 8 | . 1 . . . . . . . 2 5 Weapon 4 | . 1 . . . 1 . . . 1 1 Highest Loss Streak 6 | . 1 . . . 2 1 1 . 3 6 Average Slot Usage (%) 98 | . 98 100 99 100 99 99 100 100 96 57 Engine 4 | . 14 14 14 8 3 . . . . . Core 4 | . . . . 5 5 6 6 5 1 . Leg 33 | . 28 28 28 28 44 38 33 29 19 13 Device 2 | . 12 14 2 . . . . 5 5 2 Storage 17 | . 14 14 25 28 18 15 13 11 15 8 Processor 9 | . . . . . 8 7 20 23 20 15 Hackware 5 | . . . . . . 15 13 11 10 7 Ballistic Gun 6 | . 19 28 28 15 4 . . . . . Impact Weapon 3 | . . . . . 6 5 . . 1 2 Slashing Weapon 7 | . . . . 12 7 9 13 11 8 3 Naked Turns 33 | . . . . . . . . . . 33 Heaviest Build 79 | 12 18 17 40 44 47 44 47 48 79 67 Greatest Support 100 | 20 20 20 20 20 62 82 87 92 100 97 Greatest Overweight (x) 12 | . . . 1 2 . . . . 1 12 Average Overweight (x) . | . . . . 1 . . . . . . Largest Inventory Capacity 22 | 6 8 8 16 16 16 16 16 16 22 22 Average Capacity 15 | 5 6 8 14 16 16 16 16 16 21 14 Most Carried 22 | 6 8 8 14 16 16 16 16 16 22 18 Average Carried 14 | 4 6 7 9 15 15 15 15 14 18 11 Final Capacity 22 | 6 8 8 16 16 16 16 16 16 22 4 Final Carried 17 | 6 8 8 14 16 16 15 15 16 17 2 Class Distribution -------------------- 28% | Hacker-Mutant 27% | Mutant 27% | Scavenger-Mutant 14% | Hauler-Mutant Dominant Class ---------------- Mutant | -10/Materials Mutant | -10/Mines Mutant | -10/Exiles Mutant | -9/Mines Scavenger-Mutant | -8/Materials Hacker-Mutant | -7/Factory Hacker-Mutant | -6/Factory Hacker-Mutant | -5/Factory Hauler-Mutant | -4/Factory Mutant | -4/Waste Resources | -11 -10 -10 -10 -9 -8 -7 -6 -5 -4 -4 ----------- Run | Scr Mat Min Exi Min Mat Fac Fac Fac Fac Was Matter Collected 1246 | 164 237 . . 134 225 131 74 72 209 . Remotely . | . . . . . . . . . . . Salvage Created 3566 | . 237 . . 358 934 674 74 85 1204 . Parts 151 | . 18 . . 9 46 26 5 2 45 . Haulers Intercepted 1 | . . . . . . . . . 1 . Recyclers Shooed 2 | . . . . . . 1 . . 1 . Parts Field Recycled . | . . . . . . . . . . . Retrieved Matter . | . . . . . . . . . . . Parts Self-Destructed . | . . . . . . . . . . . Prevented . | . . . . . . . . . . . Kills | -11 -10 -10 -10 -9 -8 -7 -6 -5 -4 -4 ------- Run | Scr Mat Min Exi Min Mat Fac Fac Fac Fac Was Combat Hostiles Destroyed 47 | . 4 . . . 21 9 1 1 11 . Melee 39 | . . . . . 20 9 1 1 8 . Guns 4 | . 4 . . . . . . . . . Cannons 2 | . . . . . . . . . 2 . AOE 1 | . . . . . . . . . 1 . Classes Destroyed 12 | . 3 . . 2 3 1 . . 3 . Worker 3 | . 1 . . 1 . . . . 1 . Builder 1 | . . . . 1 . . . . . . Hauler 1 | . . . . . . . . . 1 . Recycler 11 | . . . . 5 1 2 . . 3 . Operator 1 | . . . . . 1 . . . . . Watcher 5 | . 2 . . . 1 1 . . 1 . Swarmer 8 | . . . . . 8 . . . . . Grunt 20 | . 4 . . . 7 5 . . 4 . Brawler 1 | . . . . . . . . . 1 . Sentry 11 | . . . . . 6 1 1 1 2 . Hunter 2 | . . . . . . . . . 2 . Programmer 5 | . . . . . . 3 . . 2 . Best Kill Streak 5 | . 2 . . 2 4 5 1 1 5 . Combat Bots Only 4 | . 1 . . . 4 3 1 1 3 . Max Kills in Single Turn 1 | . 1 . . 1 1 1 1 1 1 . Gunslinging . | . . . . . . . . . . . Exploded 1 | . . . . . . . . . 1 . Melee 1 | . . . . . 1 1 1 1 1 . Uniques/NPCs Destroyed . | . . . . . . . . . . . Combat | -11 -10 -10 -10 -9 -8 -7 -6 -5 -4 -4 -------- Run | Scr Mat Min Exi Min Mat Fac Fac Fac Fac Was Damage Taken 5259 | . 370 . . . 1119 546 117 203 1958 946 Core 1550 | . 70 . . . 183 54 32 47 411 753 Absorbed by Shields . | . . . . . . . . . . . Core Remaining (%) 86 | 100 . . . 72 66 92 96 95 . . Volleys Fired 42 | . 28 . . 1 . . . . 13 . Largest 2 | . 2 . . 1 . . . . 2 . Hottest 114 | . 90 . . 20 . . . . 114 . Shots Fired 72 | . 56 . . 1 . . . . 15 . Gun 57 | . 56 . . 1 . . . . . . Cannon 8 | . . . . . . . . . 8 . Launcher 7 | . . . . . . . . . 7 . Special . | . . . . . . . . . . . Kinetic 43 | . 34 . . 1 . . . . 8 . Thermal 22 | . 22 . . . . . . . . . Explosive 7 | . . . . . . . . . 7 . Electromagnetic . | . . . . . . . . . . . Robot Hit Streak 11 | . 11 . . . . . . . 7 . Robot Miss Streak 3 | . 3 . . . . . . . 1 . Penetration Max . | . . . . . . . . . . . Secondary Targets . | . . . . . . . . . . . Shots Hit Robots 240 | . 37 . . 15 67 37 3 13 67 1 Core Hits 109 | . 13 . . 7 23 15 2 2 30 17 Critical Hits 6 | . . . . . 2 . . . 4 . Critical Kills 4 | . . . . . 2 . . . 2 . Critical Parts Destroyed 2 | . . . . . . . . . 2 . Melee Attacks 241 | . . . . 17 97 47 3 13 62 2 Impact 38 | . . . . . 30 6 . . 2 . Slashing 203 | . . . . 17 67 41 3 13 60 2 Piercing . | . . . . . . . . . . . Sneak Attacks 23 | . . . . 9 4 3 . . 7 . Combat Hostiles 3 | . . . . . 1 1 . . 1 . Follow-up Attacks 19 | . . . . . 4 5 1 3 6 . Damage Inflicted 9627 | . 430 . . 1272 2552 1502 101 465 3172 133 Guns 423 | . 423 . . . . . . . . . Cannons 195 | . . . . . . . . . 195 . Explosions 416 | . . . . . . . . . 416 . Melee 8472 | . . . . 1272 2552 1502 101 465 2561 19 Ramming 121 | . 7 . . . . . . . . 114 Kinetic 414 | . 219 . . . . . . . 195 . Thermal 204 | . 204 . . . . . . . . . Explosive 416 | . . . . . . . . . 416 . Electromagnetic . | . . . . . . . . . . . Impact 906 | . . . . . 544 314 . . 48 . Slashing 7566 | . . . . 1272 2008 1188 101 465 2513 19 Piercing . | . . . . . . . . . . . Highest Corruption 5 | . . . . . . 5 5 . 3 5 Average Corruption 2 | . . . . . . 3 2 . 2 3 Corruption Purged . | . . . . . . . . . . . Effects 16 | . . . . . . . 4 . 9 3 Message Errors 8 | . . . . . . . 2 . 4 2 Matter Fused 2 | . . . . . . . 1 . 1 . Energy Discharges 3 | . . . . . . . 1 . 2 . Data Loss (minor) 3 | . . . . . . . . . 2 1 Overload Shots . | . . . . . . . . . . . Overflow Damage 1151 | . . . . 452 133 260 . 5 301 . Projectiles . | . . . . . . . . . . . Explosions . | . . . . . . . . . . . Melee 1151 | . . . . 452 133 260 . 5 301 . Knockbacks 6 | . . . . . 4 . . . 2 . Impact 4 | . . . . . 4 . . . . . Kinetic 2 | . . . . . . . . . 2 . Secondary . | . . . . . . . . . . . Self-Inflicted Damage 53 | . 3 . . . . . . . . 50 Shots . | . . . . . . . . . . . Rammed 39 | . 1 . . . . . . . . 38 Targets Rammed 39 | . 1 . . . . . . . . 38 Kicked . | . . . . . . . . . . . Crushed . | . . . . . . . . . . . Highest Temperature 244 | . 244 . . . . . . . 18 . Average Temperature 96 | . 104 . . . . . . . 10 . Received Heat Transfer 960 | . 210 . . . 378 123 . 18 231 . Effects 1 | . 1 . . . . . . . . . Energy Bleed 1 | . 1 . . . . . . . . . Siege Activations . | . . . . . . . . . . . Robots Corrupted . | . . . . . . . . . . . Combat Hostiles . | . . . . . . . . . . . Parts Fried 3 | . . . . . 3 . . . . . Impact Corruptions 4 | . . . . . 3 1 . . . . Robots Melted . | . . . . . . . . . . . Combat Hostiles . | . . . . . . . . . . . Parts Melted . | . . . . . . . . . . . Heat Transferred 569 | . 569 . . . . . . . . . Parts Sabotaged . | . . . . . . . . . . . Parts Stolen . | . . . . . . . . . . . Parts Stripped . | . . . . . . . . . . . Power Chain Reactions . | . . . . . . . . . . . Missiles Intercepted . | . . . . . . . . . . . Alert | -11 -10 -10 -10 -9 -8 -7 -6 -5 -4 -4 ------- Run | Scr Mat Min Exi Min Mat Fac Fac Fac Fac Was Peak Influence 324 | . 134 6 . 151 324 189 45 81 220 30 Initial 133 | . . 6 . . . 133 29 21 39 . Average 78 | . 41 6 . 44 138 64 29 33 58 3 Maximum Alert Level 1 | . . . . . 1 . . . 1 . Low Security (%) 85 | 100 100 100 . 100 58 100 100 100 95 100 Level 1 14 | . . . . . 41 . . . 4 . Level 2 . | . . . . . . . . . . . Level 3 . | . . . . . . . . . . . Level 4 . | . . . . . . . . . . . Level 5 . | . . . . . . . . . . . High Security . | . . . . . . . . . . . Max Security . | . . . . . . . . . . . Squads Dispatched 11 | . 1 . . 1 4 2 1 . 2 . Investigation . | . . . . . . . . . . . Extermination 5 | . . . . . . 2 1 . 2 . Reinforcement 3 | . 1 . . 1 1 . . . . . Assault . | . . . . . . . . . . . Garrison 3 | . . . . . 3 . . . . . Intercept . | . . . . . . . . . . . Construction Impeded 1 | . . . . 1 . . . . . . Haulers Reinforced . | . . . . . . . . . . . Stealth | -11 -10 -10 -10 -9 -8 -7 -6 -5 -4 -4 --------- Run | Scr Mat Min Exi Min Mat Fac Fac Fac Fac Was Distress Signals 9 | . 1 . . . 5 . . 1 2 . Communications Jammed 24 | . . . . . . . . . 24 . Distress Signals 24 | . . . . . . . . . 24 . Times Spotted 104 | . 12 . . 2 35 19 2 2 26 6 Peak Tracking Total 6 | . 4 . . 1 4 4 2 4 6 6 Tactical Retreats 7 | . . . . . 3 . . 2 2 . Traps | -11 -10 -10 -10 -9 -8 -7 -6 -5 -4 -4 ------- Run | Scr Mat Min Exi Min Mat Fac Fac Fac Fac Was Traps Triggered 4 | . . . . . . . 2 . 2 . Indirectly . | . . . . . . . . . . . Trap Hack Attempts . | . . . . . . . . . . . Triggered . | . . . . . . . . . . . Disarmed . | . . . . . . . . . . . Reprogrammed . | . . . . . . . . . . . Reused 2 | . . . . 2 . . . . . . Traps Extracted . | . . . . . . . . . . . Installed 5 | . . . . 5 . . . . . . Triggered 2 | . . . . 2 . . . . . . Machines | -11 -10 -10 -10 -9 -8 -7 -6 -5 -4 -4 ---------- Run | Scr Mat Min Exi Min Mat Fac Fac Fac Fac Was Machines Disabled 1 | . . . . 1 . . . . . . Max in Single Turn . | . . . . . . . . . . . Machines Sabotaged . | . . . . . . . . . . . Garrisons Compromised . | . . . . . . . . . . . Overloaded Fab Kills . | . . . . . . . . . . . Fab Network Shutdowns . | . . . . . . . . . . . Hacking | -11 -10 -10 -10 -9 -8 -7 -6 -5 -4 -4 --------- Run | Scr Mat Min Exi Min Mat Fac Fac Fac Fac Was Machines Accessed 33 | . 5 . 4 1 10 8 3 1 1 . Terminals 22 | . 5 . . 1 8 4 2 1 1 . Fabricators 1 | . . . . . . 1 . . . . Repair Stations 1 | . . . . . . 1 . . . . Recycling Units 2 | . . . . . . 1 1 . . . Scanalyzers 2 | . . . . . 1 1 . . . . Garrison Access 1 | . . . . . 1 . . . . . Total Hacks 119 | . 14 . 49 2 23 21 6 2 2 . Successful 88 | . 7 . 49 1 7 17 4 1 2 . Failed 31 | . 7 . . 1 16 4 2 1 . . Catastrophic 6 | . . . . . 4 1 . 1 . . Database Lockouts . | . . . . . . . . . . . Manual 36 | . 8 . 1 3 14 5 2 1 2 . Terminals 54 | . 14 . . 2 21 9 4 2 2 . Fabricators 2 | . . . . . . 2 . . . . Repair Stations 2 | . . . . . . 2 . . . . Recycling Units 4 | . . . . . . 2 2 . . . Scanalyzers 7 | . . . . . 1 6 . . . . Garrison Access 1 | . . . . . 1 . . . . . Terminal Hacks 70 | . 5 . 49 1 5 5 2 1 2 . Record 53 | . . . 49 . 1 2 . 1 . . Robot Analysis 1 | . . . . . 1 . . . . . Level Access Points 1 | . . . . 1 . . . . . . Branch Access Points 2 | . 1 . . . 1 . . . . . Terminal Index 1 | . 1 . . . . . . . . . Alert Level 5 | . . . . . 2 1 1 . 1 . Unreport Threat 2 | . . . . . . 1 . . 1 . Locate Traps 3 | . 1 . . . . 1 1 . . . Dispatch Records 1 | . 1 . . . . . . . . . Zone Layout 1 | . 1 . . . . . . . . . Fabricator Hacks 2 | . . . . . . 2 . . . . Network Status 1 | . . . . . . 1 . . . . Build 1 | . . . . . . 1 . . . . Repair Station Hacks 2 | . . . . . . 2 . . . . Scan Component 1 | . . . . . . 1 . . . . Repair 1 | . . . . . . 1 . . . . Recycling Unit Hacks 3 | . . . . . . 1 2 . . . Report Inventory 2 | . . . . . . 1 1 . . . Retrieve Components 1 | . . . . . . . 1 . . . Scanalyzer 6 | . . . . . . 6 . . . . Insert Component 3 | . . . . . . 3 . . . . Analyze 3 | . . . . . . 3 . . . . Garrison Access Hacks . | . . . . . . . . . . . Unauthorized Hacks 5 | . 2 . . . 2 1 . . . . Terminals 3 | . 2 . . . 1 . . . . . Track 2 | . 2 . . . . . . . . . Assimilate 1 | . . . . . 1 . . . . . Fabricators . | . . . . . . . . . . . Repair Stations . | . . . . . . . . . . . Recycling Units 1 | . . . . . . 1 . . . . Recyclers 1 | . . . . . . 1 . . . . Scanalyzers . | . . . . . . . . . . . Garrison Access 1 | . . . . . 1 . . . . . Reprogram 1 | . . . . . 1 . . . . . Data Cores Recovered . | . . . . . . . . . . . Used . | . . . . . . . . . . . Hacking Detections 25 | . 4 . . 1 9 7 2 1 1 . Full Trace Events . | . . . . . . . . . . . Feedback Events . | . . . . . . . . . . . Feedback Blocked . | . . . . . . . . . . . Robot Schematics Acquired . | . . . . . . . . . . . Robots Built . | . . . . . . . . . . . Matter . | . . . . . . . . . . . Time . | . . . . . . . . . . . Total Robot Build Rating . | . . . . . . . . . . . Part Schematics Acquired 3 | . . . . . . 3 . . . . Parts Built 2 | . . . . . . 2 . . . . Matter 212 | . . . . . . 212 . . . . Time 35 | . . . . . . 35 . . . . Total Part Build Rating 12 | . . . . . . 12 . . . . Parts Repaired 1 | . . . . . . 1 . . . . Time 19 | . . . . . . 19 . . . . Parts Recycled . | . . . . . . . . . . . Recycled Matter . | . . . . . . . . . . . Retrieved Matter . | . . . . . . . . . . . Retrieved Components 2 | . . . . . . . 2 . . . Parts Scanalyzed 3 | . . . . . . 3 . . . . Part Schematics Acquired 3 | . . . . . . 3 . . . . Parts Damaged 1 | . . . . . . 1 . . . . Bothacking | -11 -10 -10 -10 -9 -8 -7 -6 -5 -4 -4 ------------ Run | Scr Mat Min Exi Min Mat Fac Fac Fac Fac Was Used RIF Installer . | . . . . . . . . . . . Robots Hacked . | . . . . . . . . . . . Non-combat . | . . . . . . . . . . . Combat . | . . . . . . . . . . . Robot Hacks Applied . | . . . . . . . . . . . Relay Couplers Released . | . . . . . . . . . . . Robots Rewired . | . . . . . . . . . . . Allies Hacked . | . . . . . . . . . . . Hacks Repelled . | . . . . . . . . . . . Allies | -11 -10 -10 -10 -9 -8 -7 -6 -5 -4 -4 -------- Run | Scr Mat Min Exi Min Mat Fac Fac Fac Fac Was Total Allies 7 | . . . . 3 4 . . . . . Largest Group 3 | . . . . 3 3 . . . . . Highest-Rated Group 40 | . . . . 40 15 . . . . . Highest-Rated Ally 16 | . . . . 16 10 . . . . . Total Orders . | . . . . . . . . . . . Ally Attacks 52 | . . . . 21 31 . . . . . Total Damage 371 | . . . . 203 168 . . . . . Kills 9 | . . . . 6 3 . . . . . Allies Corrupted 1 | . . . . . 1 . . . . . Allies Melted . | . . . . . . . . . . . Turrets Deployed 3 | . . . 3 . . . . . . . Intel | -11 -10 -10 -10 -9 -8 -7 -6 -5 -4 -4 ------- Run | Scr Mat Min Exi Min Mat Fac Fac Fac Fac Was Robot Analysis Total 1 | . . . . . 1 . . . . . Derelict Logs Recovered 2 | . . . . 2 . . . . . . Drone Launches . | . . . . . . . . . . . Drone Recoveries . | . . . . . . . . . . . Exploration | -11 -10 -10 -10 -9 -8 -7 -6 -5 -4 -4 ------------- Run | Scr Mat Min Exi Min Mat Fac Fac Fac Fac Was Turns Passed 9519 | 76 597 205 747 801 2933 1728 596 377 1302 157 Spaces Moved 4918 | 54 320 151 506 342 1047 1076 428 265 659 70 Core 7 | 5 . . . . . . . . . 2 Treads . | . . . . . . . . . . . Legs 4690 | 49 320 151 506 342 1047 1076 428 265 438 68 Wheels . | . . . . . . . . . . . Hover 221 | . . . . . . . . . 221 . Flight . | . . . . . . . . . . . Fastest Speed 50 | 50 120 120 120 150 120 122 124 124 56 120 Average Speed 125 | 113 120 120 145 174 120 122 124 124 102 142 Slowest Speed 650 | 120 120 120 150 180 122 124 124 124 142 650 Overloaded Moves . | . . . . . . . . . . . Propulsion Burnouts . | . . . . . . . . . . . Robots Hopped . | . . . . . . . . . . . Cave-ins Triggered . | . . . . . . . . . . . Exploration Rate (%) 40 | 4 51 39 93 60 69 34 17 13 12 52 Regions Visited 10 Branch Regions 3 Pre-discovered Areas 2 | . . . 1 1 . . . . . . Known Exits Taken 6 | . 1 . . 1 1 1 1 1 . . Unknown Exits Taken 3 | 1 . 1 1 . . . . . . . Scrap Searched . | . . . . . . . . . . . Spaces Dug . | . . . . . . . . . . . Terrain Destroyed 28 | . . . . . . . . . 28 . Melee . | . . . . . . . . . . . Projectile 3 | . . . . . . . . . 3 . AOE 25 | . . . . . . . . . 25 . Terrain Rammed . | . . . . . . . . . . . Walls Destroyed . | . . . . . . . . . . . Machines Disabled . | . . . . . . . . . . . Actions | -11 -10 -10 -10 -9 -8 -7 -6 -5 -4 -4 --------- Run | Scr Mat Min Exi Min Mat Fac Fac Fac Fac Was Total 7906 | 66 480 175 518 536 2625 1421 492 294 1174 125 Wait 2425 | . 102 21 . 147 1421 268 43 14 408 1 Move 4909 | 53 319 150 505 341 1046 1075 427 264 659 70 Hop . | . . . . . . . . . . . Pick Up 76 | 7 9 1 3 11 18 10 6 2 7 2 Fast Attach 28 | 5 3 . 3 1 5 2 1 . 4 4 Attach 31 | 1 3 . . . 6 3 3 2 10 3 Detach 3 | . . . 1 . . . . . 2 . Swap 52 | . 4 . 3 2 14 10 3 2 14 . Drop 80 | . 11 1 3 11 25 13 7 . 4 5 Fire 42 | . 28 . . 1 . . . . 13 . Melee 214 | . . . . 17 90 40 2 10 53 2 Ram 38 | . . . . . . . . . . 38 Kick 1 | . 1 . . . . . . . . . Crush . | . . . . . . . . . . . Escape Stasis . | . . . . . . . . . . . Rewire 2 | . . 2 . . . . . . . . Trap 5 | . . . . 5 . . . . . . Miscellaneous . | . . . . . . . . . . . Route ------- -11/Scrapyard -10/Materials (discovered 2 exits: [*Mat] / *Min) -10/Mines (discovered 3 exits: [*Mat x2] / *Exi) -10/Exiles (discovered 2 exits: *Min x2) -9/Mines (discovered 2 exits: *Mat x2) -8/Materials (discovered 2 exits: *Fac x2) -7/Factory -6/Factory -5/Factory -4/Factory -4/Waste History --------- Turn | Location | Event 12 | -11/Scrapyard | Discovered new exit (range 15) 77 | -11/Scrapyard | Entered Materials 301 | -10/Materials | Build established: Mutant 452 | -10/Materials | Discovered new exit (range 15) 536 | -10/Materials | Identified exit to Mines 674 | -10/Materials | Entered Mines 778 | -10/Mines | Discovered new exit (range 8) 853 | -10/Mines | Discovered new exit (range 4) 874 | -10/Mines | Deemed a non-threat by the Exiles lab entrance 874 | -10/Mines | Discovered new exit (range 5) 879 | -10/Mines | Entered Exiles 897 | -10/Exiles | Discovered new exit (range 15) 911 | -10/Exiles | Met 8R-AWN 931 | -10/Exiles | Met EX-HEX 1025 | -10/Exiles | Met EX-DEC 1050 | -10/Exiles | Visited The Gauntlet 1309 | -10/Exiles | Met EX-BIN 1330 | -10/Exiles | Aligned with FarCom system 1331 | -10/Exiles | Given EX-Vault access code 1396 | -10/Exiles | Opened EX-Vault 1404 | -10/Exiles | Found Prototype Device 1404 | -10/Exiles | Identified PSU Rigger 1410 | -10/Exiles | Found Prototype Device 1410 | -10/Exiles | Identified Supersonic Drone Bay 1425 | -10/Exiles | DAS Turret deployed 1427 | -10/Exiles | DAS Turret deployed 1428 | -10/Exiles | DAS Turret deployed 1463 | -10/Exiles | Warned to stay clear of 0b10 Research branches 1514 | -10/Exiles | Learned location of Zion (-7) 1609 | -10/Exiles | Discovered new exit (range 14) 1626 | -10/Exiles | Left Exiles lab with PSU Rigger 1626 | -10/Exiles | Entered Mines 1629 | -9/Mines | Assisted by bots powering up and referring to "LRC-V3" 1656 | -9/Mines | Found a hidden stash of uninstalled traps 1721 | -9/Mines | A weapon hastily lodged in a ceiling crevice suddenly fell to the ground 1841 | -9/Mines | Identified exit to Materials 1852 | -9/Mines | Received a Rocket Launcher from a helpful Derelict 2009 | -9/Mines | Joined a pair of Derelicts in attacking an 0b10 outpost 2197 | -9/Mines | Learned location of 1 exit from Materials 2427 | -9/Mines | Entered Materials 2427 | -8/Materials | Evolved 4 slots: Propulsion x3, Utility x1 2428 | -8/Materials | Identified exit to Factory 2948 | -8/Materials | Build established: Scavenger-Mutant 3615 | -8/Materials | Garrison activated, responded to threat 5206 | -8/Materials | Discovered exit to Factory (range 6) 5360 | -8/Materials | Entered Factory 5360 | -7/Factory | Evolved 2 slots: Utility x2 5458 | -7/Factory | Repaired Carbon-fiber Leg 5625 | -7/Factory | Fabricated Enh. Gauss Cannon (x2) 5668 | -7/Factory | Build established: Hacker-Mutant 7012 | -7/Factory | Discovered new exit (range 15) 7084 | -7/Factory | Identified exit to Factory 7088 | -7/Factory | Entered another Factory area 7088 | -6/Factory | Evolved 2 slots: Utility x2 7105 | -6/Factory | Found Prototype Processor 7657 | -6/Factory | Discovered new exit (range 15) 7673 | -6/Factory | Identified exit to Factory 7684 | -6/Factory | Entered another Factory area 7684 | -5/Factory | Evolved 2 slots: Utility x2 7986 | -5/Factory | Discovered new exit (range 12) 8060 | -5/Factory | Identified exit to Factory 8061 | -5/Factory | Entered another Factory area 8061 | -4/Factory | Evolved 2 slots: Utility x2 8351 | -4/Factory | Build established: Hauler-Mutant 8824 | -4/Factory | Lost 3 parts (1n2u) 8826 | -4/Factory | Identified Exp. Signal Interpreter 9363 | -4/Factory | Sucked down chute 9363 | -4/Factory | Entered Waste 9382 | -4/Waste | Spotted C-40 Crusher 9395 | -4/Waste | Spotted C-40 Crusher 9401 | -4/Waste | Spotted C-40 Crusher 9407 | -4/Waste | Spotted C-40 Crusher 9407 | -4/Waste | Spotted C-40 Crusher 9416 | -4/Waste | Crushed by Compactor (1 part destroyed, 2 dropped) 9421 | -4/Waste | Crushed by Compactor (1 part destroyed, 2 dropped) 9447 | -4/Waste | Crushed by Compactor (1 part destroyed, 2 dropped) 9454 | -4/Waste | Spotted C-40 Crusher 9478 | -4/Waste | Lost 6 parts (3n2u1w) 9478 | -4/Waste | Crushed by Compactor (1 part destroyed, 1 dropped) 9481 | -4/Waste | Crushed by Compactor (1 part destroyed, 1 dropped) 9484 | -4/Waste | Crushed by Compactor (1 part destroyed, 1 dropped) 9487 | -4/Waste | Crushed by Compactor (1 part destroyed, 2 dropped) 9488 | -4/Waste | Core integrity fell below 50% 9509 | -4/Waste | Core integrity fell below 20% 9518 | -4/Waste | Lost 5 parts (2n3u) 9520 | -4/Waste | Destroyed by C-40 Crusher with Compactor Last Messages --------------- 09484_ Destabilizing: Core damaged (-23). 09484_ Hacking Suite crushed. 09484_ Exp. Signal Interpreter crushed. 09485_ Slammed into C-40 Crusher. 09487_ Destabilizing: System interference. 09487_ Imp. Signal Interpreter temporarily disabled. 09487_ Imp. Signal Interpreter crushed. 09487_ Imp. Melee Analysis Suite crushed. 09487_ Hacking Suite crushed. 09488_ Slammed into C-40 Crusher. 09490_ Destabilizing: Core damaged (-11). 09491_ Slammed into C-40 Crusher. 09500_ Destabilizing: System corrupted (+1). 09501_ Slammed into C-40 Crusher. 09506_ Destabilizing: System corrupted (+1). 09507_ Slammed into C-40 Crusher. 09507_ Destabilizing: Core damaged (-46). 09508_ Slammed into C-40 Crusher. 09519_ VIY,8UG|% 3CY4BHC0R&PUMF= 09519_ Slammed into C-40 Crusher. Map ----- +----------------------------------------------------+ | ????????????# #??????# ! #??????? #???????? | | ##########??# #??????# #??????# #???????? | | #??# #??????# #??????# #???????? | | #??# #??????# #??????# #???????? | | #### ######## ######## ######## | | ! ! | | * | | | | | | #### ######## ######## ######## | | #??# #??????# #??????#* #???????? | | #??# #??????# #??????# #???????? | | ##########??# #??????# #??????# #???????? | | ????????????# #??????# ######## #???????? | | ???????????? #??????# #???????? | | ??????????? #??????# #???????? | | ??????????# #??????# #???????? | | ??????????# #??????#= = #???????? | | ??????????### #??????# ######## #???????? | | ????????????? ???????# CC#??????# #???????? | | ?????????????? ????????# CC#??????# #???????? | | ????????????????????????#CCCC#??????# #???????? | | ????????????????????????#CCCC#??????? #???????? | | ????????????????????????#CCCC#??????? ???????? | | ????????????????????????#CCCC#??????? ??????? | | ????????????????????????#@! #??????? ?????? | | ????????????????????????#/!CC#??????? ?????? | | ????????????????????????# CC#??????? ####????? | | ????????????????????????# #??????? ????????? | | ????????????????????????# #???????? ??????????? | | ????????????????????????# #???????????????????? | | ????????????????????????# #???????????????????? | | ????????????????????????######???????????????????? | | ?????????????????????????????????????????????????? | | ?????????????????????????????????????????????????? | | ?????????????????????????????????????????????????? | | ?????????????????????????????????????????????????? | | ?????????????????????????????????????????????????? | | ?????????????????????????????????????????????????? | | ?????????????????????????????????????????????????? | | ?????????????????????????????????????????????????? | | ?????????????????????????????????????????????????? | | ?????????????????????????????????????????????????? | | ?????????????????????????????????????????????????? | | ?????????????????????????????????????????????????? | | ?????????????????????????????????????????????????? | | ?????????????????????????????????????????????????? | | ?????????????????????????????????????????????????? | | ?????????????????????????????????????????????????? | | ?????????????????????????????????????????????????? | +----------------------------------------------------+ Best States ------------- Heat Dissipation 43 Energy Generation 25 Energy Capacity 350 Matter Stores 300 Matter Capacity 300 Sight Range 22 Robot Scan Range 10 Terrain Scan Range 14 Terrain Scan Density 10 ECM Strength 1 Jamming Range 8 Armor Coverage 225 Evasion (%) 53 Melee Accuracy 14 Offensive Hacking 20 Item Schematics ----------------- Carbon-fiber Leg | -7/Factory | Scanalyzed Titanium Leg | -7/Factory | Scanalyzed Enh. Optical Array | -7/Factory | Scanalyzed Robot Schematics ------------------ None Fabricated ------------ Enh. Gauss Cannon | x2 | -7/Factory | Preloaded Alien Tech Used ----------------- None Achievements -------------- No Signal Challenges ------------ None Game ------ Seed CombatSwarmStabilizer Manual? 0 Play Time 01:32:37 Cumulative 23.2 hours Start 2020.10.08 @ 19:58:22 End 2020.10.08 @ 22:17:00 Sessions 1 Manual Loads 0 Difficulty Rogue Special Mode None Game No. 32 Rogue 32 Adventurer 0 Explorer 0 Win Type - Total 0 Types 0/0/0/0/0/0/0/0/0 Lore% 40 Gallery% 30 Achievement% 29 Wizard Run 0 Options --------- ASCII 0 Keyboard 1 Movement Vi Keybinds 0 Fullscreen 2 Font 24/Proggy Map View 76x50 Tactical HUD 1 Map Filters NONE Filters NONE Steam 1 RUN: 0ed26e49-29f2-4979-9e28-1449d0a1a57c